bitfinex-derivatives/quotes_BTCF0:USTF0_20250424
["timestamp","ask_amount","ask_price","bid_price","bid_amount"]
[1745505293430,0.1936919,92914.0,92913.0,0.1075931]
[1745505293632,0.1966919,92914.0,92913.0,0.1075931]
[1745505293821,0.1936919,92914.0,92913.0,0.1075931]
[1745505294226,0.0891,92914.0,92913.0,0.1075931]
[1745505294430,0.1966919,92914.0,92913.0,0.1075931]
[1745505295026,0.0891,92914.0,92907.0,0.1075992]
[1745505295231,0.1076,92908.0,92907.0,0.1075992]
[1745505297028,0.0786,92909.0,92908.0,0.1075989]
[1745505297228,0.1613951,92912.0,92911.0,0.0537971]
[1745505299425,0.1643951,92912.0,92911.0,0.0537971]
[1745505299943,0.1663951,92912.0,92911.0,0.0537971]
[1745505303447,0.005,92912.0,92911.0,0.0537971]
[1745505303646,0.10938455,92918.0,92911.0,0.16142509]
[1745505303836,0.0011,92937.0,92934.0,0.1075688]
[1745505304444,0.27163259,92935.0,92934.0,0.1075688]
[1745505305231,0.16406499,92935.0,92934.0,0.1075688]
[1745505305642,0.1075676,92935.0,92934.0,0.1613527]
[1745505305835,0.21894769,92937.0,92936.0,0.1075664]
[1745505306946,0.21894769,92937.0,92936.0,0.1856664]
[1745505307349,0.22094769,92937.0,92936.0,0.1856664]
[1745505307646,0.1075664,92936.0,92935.0,0.0826]
[1745505307839,0.1879664,92936.0,92935.0,0.0826]
[1745505308839,0.1879664,92936.0,92935.0,0.1901676]
[1745505309041,0.1909664,92936.0,92935.0,0.1901676]
[1745505309550,0.1939664,92936.0,92935.0,0.1901676]
[1745505310546,0.0864,92936.0,92935.0,0.1901676]
[1745505310743,0.006,92936.0,92935.0,0.1901676]
[1745505310952,0.006,92936.0,92935.0,0.5509676]
[1745505313046,0.0791,92951.0,92950.0,0.1075502]
[1745505313744,0.161326,92951.0,92950.0,0.1075493]
[1745505313939,0.1075472,92953.0,92952.0,0.1075456]
[1745505314144,0.4683449,92955.0,92954.0,0.1075456]
[1745505314347,0.0791,92955.0,92954.0,0.1075456]
[1745505314653,0.10225,92957.0,92956.0,0.1075433]
[1745505315449,0.10225,92957.0,92956.0,0.11561608]
[1745505315855,0.10425,92957.0,92956.0,0.11561608]
[1745505316553,0.10525,92957.0,92956.0,0.11561608]
[1745505324454,0.0011,92967.0,92966.0,0.1075317]
[1745505324646,1e-07,92968.0,92967.0,0.1075306]
[1745505324850,1e-07,92968.0,92967.0,0.29169459]
[1745505325958,1e-07,92968.0,92967.0,0.36969459]
[1745505326258,1e-07,92968.0,92954.0,0.0786]
[1745505326454,1e-07,92968.0,92945.0,0.4145778]
[1745505326455,0.1075364,92962.0,92961.0,0.0823]
[1745505326654,0.1075364,92962.0,92936.0,0.001076]
[1745505326655,0.1075468,92953.0,92947.0,0.07852]
[1745505326860,0.1075595,92942.0,92941.0,0.0823]
[1745505327045,0.4145791,92944.0,92942.0,0.1075586]
[1745505327245,0.1881598,92943.0,92942.0,0.1075586]
[1745505327452,0.1075653,92937.0,92936.0,0.001076]
[1745505328055,0.1075942,92912.0,92910.0,0.3608]
[1745505328448,0.0806,92913.0,92910.0,0.3608]
[1745505328653,0.1075942,92912.0,92910.0,0.3608]
[1745505328959,0.0806,92913.0,92912.0,0.38084356]
[1745505329153,0.1881931,92913.0,92912.0,0.38084356]
[1745505329351,0.2958211,92913.0,92912.0,0.27196318]
[1745505329552,0.2958211,92913.0,92891.0,0.0741]
[1745505329553,0.1076,92907.0,92891.0,0.0741]
[1745505329748,0.4684,92907.0,92897.0,0.107611]
[1745505329959,0.4684,92907.0,92902.0,0.01078132]
[1745505330255,0.1076023,92905.0,92892.0,0.0538086]
[1745505330457,0.183336,92906.0,92905.0,0.1076023]
[1745505330760,0.0757,92906.0,92905.0,0.1076023]
[1745505331353,0.4365,92906.0,92905.0,0.1076023]
[1745505331558,0.0757,92906.0,92905.0,0.1076023]
[1745505331759,0.4365,92906.0,92905.0,0.1076023]
[1745505332557,0.4365,92906.0,92905.0,0.1106023]
[1745505333057,0.0757,92906.0,92905.0,0.1106023]
[1745505333555,0.0757,92906.0,92905.0,0.1136023]
[1745505333758,0.07529439,92906.0,92905.0,0.1136023]
[1745505334754,0.18289559,92906.0,92905.0,0.1136023]
[1745505336260,0.07529439,92906.0,92905.0,0.1136023]
[1745505336465,0.07529439,92906.0,92905.0,0.4744023]
[1745505336764,0.3608,92915.0,92914.0,0.1075919]
[1745505337157,0.0745,92918.0,92917.0,0.1075884]
[1745505338161,0.1075884,92917.0,92916.0,0.1833893]
[1745505338364,0.0745,92918.0,92917.0,0.1075884]
[1745505338862,0.0537861,92931.0,92923.0,0.0537903]
[1745505339062,0.1075737,92930.0,92926.0,0.053789]
[1745505339263,0.1075767,92928.0,92920.0,0.0537923]
[1745505339460,0.1075737,92930.0,92921.0,0.0758]
[1745505339666,0.3608,92930.0,92926.0,0.0537887]
[1745505339853,0.3608,92928.0,92914.0,0.3618]
[1745505340056,0.1075845,92921.0,92915.0,0.0758]
[1745505340253,0.0714,92920.0,92914.0,0.3608]
[1745505340454,0.4145931,92919.0,92905.0,0.3608]
[1745505340654,0.1251938,92918.0,92906.0,0.1076011]
[1745505340863,0.0537976,92912.0,92907.0,0.1075993]
[1745505341069,0.1075977,92910.0,92908.0,0.1075985]
[1745505341266,0.0714,92909.0,92905.0,0.3608]
[1745505341462,0.0714,92909.0,92908.0,0.1075989]
[1745505342558,0.3628,92928.0,92918.0,0.1075873]
[1745505342758,0.0738,92927.0,92918.0,0.1075873]
[1745505342962,0.1613696,92925.0,92918.0,0.1075873]
[1745505343169,0.0537897,92925.0,92918.0,0.1075873]
[1745505343362,0.0738,92927.0,92918.0,0.1075873]
[1745505343562,0.0738,92927.0,92913.0,0.071]
[1745505343563,0.0738,92927.0,92926.0,0.107578]
[1745505344168,0.1075801,92925.0,92922.0,0.1075823]
[1745505344471,0.3608,92923.0,92922.0,0.1075823]
[1745505344770,0.4346,92924.0,92923.0,0.1075815]
[1745505345864,0.0738,92924.0,92923.0,0.1075815]
[1745505346259,0.0748,92924.0,92923.0,0.1075815]
[1745505347367,0.0758,92924.0,92923.0,0.1075815]
[1745505347572,1e-07,92924.0,92923.0,0.5422815]
[1745505348571,1e-07,92924.0,92923.0,0.4297]
[1745505348766,1e-07,92924.0,92923.0,0.1075815]
[1745505349274,0.0010001,92924.0,92923.0,0.1904815]
[1745505350079,0.13618668,92941.0,92936.0,0.1075664]
[1745505350369,0.0735,92940.0,92936.0,0.1075664]
[1745505351369,0.13618668,92941.0,92936.0,0.1799664]
[1745505351762,0.13618668,92941.0,92936.0,0.1819664]
[1745505351967,0.13618668,92941.0,92936.0,0.19002208]
[1745505352165,0.1501,92940.0,92936.0,0.0744]
[1745505352460,0.6184621,92940.0,92936.0,0.1105664]
[1745505352669,0.107565,92938.0,92936.0,0.003]
[1745505352971,0.1469,92937.0,92936.0,0.1105664]
[1745505353369,0.1479,92937.0,92936.0,0.1085664]
[1745505354074,0.1469,92937.0,92936.0,0.001]
[1745505354273,0.2544653,92937.0,92936.0,0.002]
[1745505354471,0.1075782,92926.0,92919.0,0.053793]
[1745505354671,0.1414,92925.0,92924.0,0.1075803]
[1745505355964,0.1414,92925.0,92924.0,0.1085803]
[1745505356972,0.2489792,92925.0,92924.0,0.001]
[1745505357867,0.2489792,92925.0,92924.0,0.002]
[1745505359279,0.2489792,92925.0,92924.0,0.001]
[1745505359577,0.1075827,92922.0,92921.0,0.1075837]
[1745505360382,0.0537918,92922.0,92915.0,0.0672]
[1745505360564,0.1434,92925.0,92904.0,0.1076027]
[1745505360565,0.1614064,92905.0,92904.0,0.1076027]
[1745505360770,0.468401,92907.0,92906.0,0.1076]
[1745505361474,0.0538048,92899.0,92898.0,0.1076077]
[1745505361775,0.0538052,92898.0,92892.0,0.06175422]
[1745505361973,0.2321194,92897.0,92896.0,0.1076128]
[1745505362370,0.1245063,92897.0,92896.0,0.1076128]
[1745505362768,0.0707,92897.0,92896.0,0.1076128]
[1745505362975,0.1407,92897.0,92896.0,0.1076128]
[1745505363170,0.1407,92897.0,92896.0,0.1126128]
[1745505363472,0.1407,92897.0,92896.0,0.1176128]
[1745505363873,0.2483116,92897.0,92896.0,0.1176128]
[1745505364872,0.3608,92909.0,92896.0,0.3708]
[1745505365071,0.7747,92918.0,92896.0,0.3708]
[1745505365072,0.3608,92918.0,92898.0,0.30161821]
[1745505365280,0.1076073,92902.0,92901.0,0.1076046]
[1745505365671,0.1805031,92905.0,92904.0,0.1076035]
[1745505365868,0.1442,92905.0,92904.0,0.1076035]
[1745505366979,0.1442,92905.0,92904.0,0.1136035]
[1745505367175,0.1442,92905.0,92904.0,0.4744035]
[1745505367376,0.10930842,92914.0,92913.0,0.1075931]
[1745505368874,0.10930842,92914.0,92913.0,0.1085931]
[1745505369073,0.10930842,92914.0,92913.0,0.1241486]
[1745505369280,0.10930842,92914.0,92913.0,0.1251486]
[1745505370288,0.1075911,92915.0,92914.0,0.1075919]
[1745505370491,0.1797911,92915.0,92914.0,0.1231474]
[1745505370674,0.0722,92915.0,92914.0,0.1231474]
[1745505370982,0.0722,92915.0,92914.0,0.1075919]
[1745505371377,0.0722,92915.0,92914.0,0.4683919]
[1745505371577,0.5462033,92936.0,92914.0,0.4683919]
[1745505371578,0.10930842,92929.0,92921.0,0.1075838]
[1745505371978,0.10930842,92929.0,92921.0,0.12315383]
[1745505372789,0.10930842,92929.0,92921.0,0.12315051]
[1745505372984,0.00100001,92922.0,92921.0,0.23076651]
[1745505373290,0.10930842,92929.0,92928.0,0.1075757]
[1745505373478,0.10930842,92929.0,92928.0,0.12314241]
[1745505373980,0.10930842,92929.0,92928.0,0.19094241]
[1745505374180,0.1375,92936.0,92928.0,0.19094241]
[1745505374181,0.1375,92936.0,92935.0,0.1075676]
[1745505374487,0.1375,92936.0,92935.0,0.12313431]
[1745505374682,0.1375,92936.0,92935.0,0.12331708]
[1745505374877,0.1375,92936.0,92935.0,0.48411708]
[1745505375078,0.1375,92936.0,92935.0,0.4683676]
[1745505375291,0.1375,92936.0,92935.0,0.1075676]
[1745505375490,0.1415,92936.0,92935.0,0.1075676]
[1745505376180,0.1455,92936.0,92935.0,0.1075676]
[1745505376379,0.2530664,92936.0,92935.0,0.1075676]
[1745505376788,0.008,92936.0,92935.0,0.1075676]
[1745505376987,0.1446,92936.0,92935.0,0.1075676]
[1745505377289,0.1446,92936.0,92935.0,0.18873406]
[1745505379403,0.2521664,92936.0,92935.0,0.18873406]
[1745505379795,0.1446,92936.0,92935.0,0.18873406]
[1745505380302,0.008,92936.0,92935.0,0.54953406]
[1745505381297,0.008,92936.0,92935.0,0.55776892]
[1745505386604,0.000869,92936.0,92935.0,0.55776892]
[1745505386809,0.52320842,92957.0,92935.0,0.62920132]
[1745505387009,0.10930842,92957.0,92956.0,0.1075433]
[1745505387800,0.11448709,92966.0,92965.0,0.1075329]
[1745505387996,0.16406499,92976.0,92967.0,0.1075306]
[1745505388196,0.16402509,92976.0,92975.0,0.1075213]
[1745505389006,0.16402509,92976.0,92975.0,0.2500213]
[1745505389208,0.16402509,92976.0,92975.0,0.26554307]
[1745505389611,0.02329215,92976.0,92975.0,0.37309907]
[1745505390108,0.02329215,92976.0,92975.0,0.3575773]
[1745505390507,0.0716,92996.0,92995.0,0.1074982]
[1745505390699,0.1397,92996.0,92995.0,0.1074982]
[1745505391098,0.0537403,93011.0,92995.0,0.1074982]
[1745505391099,0.0537408,93010.0,92996.0,0.107497]
[1745505391305,0.0537384,93014.0,92996.0,0.107497]
[1745505391306,0.3608,93014.0,92999.0,0.1074936]
[1745505391505,0.1074784,93013.0,92999.0,0.1858936]
[1745505391712,0.1074792,93012.0,92999.0,0.2934216]
[1745505391908,0.4289,93014.0,92999.0,0.2934216]
[1745505392109,0.4289,93014.0,92999.0,0.30890649]
[1745505392409,0.09461,93000.0,92999.0,0.30890649]
[1745505392608,0.09761,93000.0,92999.0,0.30889718]
[1745505394022,0.09661,93000.0,92999.0,0.30889718]
[1745505394207,0.09861,93000.0,92999.0,0.1858936]
[1745505394406,0.0537478,92998.0,92994.0,0.01098631]
[1745505394607,0.0537505,92993.0,92988.0,0.0537531]
[1745505394815,0.07,92997.0,92991.0,0.0537507]
[1745505395011,0.1075028,92991.0,92990.0,0.0683]
[1745505395313,0.4683005,92993.0,92992.0,0.0537508]
[1745505395507,0.1075105,92987.0,92986.0,0.1075082]
[1745505395707,0.4305,92993.0,92992.0,0.1075017]
[1745505395908,0.3608,92993.0,92992.0,0.1075017]
[1745505396311,0.4683005,92993.0,92992.0,0.1075017]
[1745505396722,0.3608,92993.0,92992.0,0.1075017]
[1745505397810,0.0537477,92998.0,92995.0,0.1612445]
[1745505397811,0.1074974,92996.0,92995.0,0.1612445]
[1745505398211,0.1612432,92998.0,92997.0,0.1074959]
[1745505398418,0.09461,93000.0,92999.0,0.1074936]
[1745505399318,0.09461,93000.0,92999.0,0.1764936]
[1745505399516,0.09561,93000.0,92999.0,0.1764936]
[1745505400906,0.09761,93000.0,92999.0,0.1764936]
[1745505401616,0.09761,93000.0,92999.0,0.2840216]
[1745505402013,0.09761,93000.0,92999.0,0.3551216]
[1745505402221,0.09561,93000.0,92999.0,0.37076002]
[1745505402413,0.09661,93000.0,92999.0,0.37076002]
[1745505402614,0.09561,93000.0,92999.0,0.37476002]
[1745505403222,0.09561,93000.0,92999.0,0.26723202]
[1745505404219,0.2031024,93000.0,92999.0,0.01963842]
[1745505404521,0.2021024,93000.0,92999.0,0.004]
[1745505404714,0.2021024,93000.0,92999.0,0.008]
[1745505404910,0.5629024,93000.0,92999.0,0.008]
[1745505405106,0.5629024,93000.0,92987.0,0.07836]
[1745505405107,0.812938,93000.0,92987.0,0.07836]
[1745505405311,0.468302,92992.0,92991.0,0.1075028]
[1745505405513,0.09461,93000.0,92999.0,0.1114936]
[1745505405821,0.2021024,93000.0,92999.0,0.004]
[1745505406009,0.16291,93000.0,92999.0,0.1114936]
[1745505406324,0.16291,93000.0,92999.0,0.12399378]
[1745505406910,0.16291,93000.0,92999.0,0.18909378]
[1745505407217,0.16291,93000.0,92999.0,0.1735936]
[1745505407922,0.16291,93000.0,92999.0,0.1725936]
[1745505408224,0.16291,93000.0,92999.0,0.18818602]
[1745505408925,0.2704024,93000.0,92999.0,0.12308602]
[1745505409218,0.0537468,92999.0,92998.0,0.1074947]
[1745505409523,0.0701,92999.0,92998.0,0.1074947]
[1745505409723,0.1381,92999.0,92998.0,0.1074947]
[1745505411221,0.2455936,92999.0,92998.0,0.1074947]
[1745505411430,0.1381,92999.0,92998.0,0.1074947]
[1745505411617,0.2455936,92999.0,92998.0,0.1074947]
[1745505412329,0.0537501,92994.0,92993.0,0.1075005]
[1745505412826,0.1612473,92996.0,92995.0,0.1074982]
[1745505413029,0.053749,92996.0,92995.0,0.1074982]
[1745505414133,0.1336,92996.0,92995.0,0.1074982]
[1745505415031,0.1336,92996.0,92995.0,0.4682982]
[1745505415422,0.1336,92996.0,92995.0,0.4692982]
[1745505415632,0.1336,92996.0,92995.0,0.4702982]
[1745505415832,0.1336,92996.0,92995.0,0.5400982]
[1745505420131,0.09461,93000.0,92999.0,0.1074936]
[1745505423329,0.5629024,93000.0,92999.0,0.1074936]
[1745505423530,0.09461,93000.0,92999.0,0.1074936]
[1745505423835,0.1483562,93000.0,92999.0,0.1074936]
[1745505424134,0.2692024,93000.0,92999.0,0.1074936]
[1745505424336,0.23151,93000.0,92999.0,0.1074936]
[1745505427839,0.09461,93000.0,92999.0,0.1074936]
[1745505428333,0.09461,93000.0,92999.0,0.2395936]
[1745505430333,0.08661,93000.0,92999.0,0.2395936]
[1745505430533,0.08661,93000.0,92999.0,0.3471216]
[1745505431337,0.08661,93000.0,92999.0,0.36287291]
[1745505431944,0.08661,93000.0,92999.0,0.36287103]
[1745505432153,0.08661,93000.0,92999.0,0.25534303]
[1745505434335,0.0507046,93000.0,92999.0,0.2395936]
[1745505434540,0.00516,93016.0,93015.0,0.1074751]
[1745505434745,0.00516,93016.0,93015.0,0.5465951]
[1745505435548,0.00516,93016.0,93015.0,0.6855951]
[1745505435941,0.00616,93016.0,93015.0,0.6855951]
[1745505436848,0.00616,93016.0,93015.0,0.6148951]
[1745505437153,0.01016,93016.0,93015.0,0.6148951]
[1745505437345,0.1176339,93016.0,93015.0,0.1857951]
[1745505437548,0.1074797,93012.0,93010.0,0.0537403]
[1745505437844,0.1333,93011.0,93010.0,0.1612212]
[1745505440751,0.2407797,93011.0,93010.0,0.0537403]
[1745505440945,0.1074832,93008.0,93007.0,0.3608]
[1745505441247,0.3608,93010.0,93009.0,0.107482]
[1745505441438,0.1074825,93011.0,93010.0,0.1074809]
[1745505441643,0.0537375,93015.0,93005.0,0.3608]
[1745505441841,0.1074819,93011.0,93010.0,0.107479]
[1745505442042,0.4682819,93011.0,93010.0,0.107479]
[1745505442447,0.3608,93011.0,93010.0,0.107479]
[1745505442642,0.1126341,93016.0,93015.0,0.1074751]
[1745505442845,0.00516,93016.0,93015.0,0.1074751]
[1745505443044,0.00516,93016.0,93015.0,0.4682751]
[1745505444548,0.00616,93016.0,93015.0,0.4682751]
[1745505465761,0.13024,93025.0,93024.0,0.1074647]
[1745505465966,0.13024,93025.0,93024.0,0.4682647]
[1745505466859,0.13324,93025.0,93024.0,0.4682647]
[1745505467259,0.13324,93025.0,93024.0,0.5379647]
[1745505467655,0.13324,93025.0,93024.0,0.4682647]
[1745505467852,0.13624,93025.0,93024.0,0.4682647]
[1745505472370,0.13653069,93025.0,93024.0,0.4682647]
[1745505478575,0.13653069,93025.0,93024.0,0.48399364]
[1745505478775,0.00629069,93025.0,93024.0,0.55119324]
[1745505479476,0.13619069,93025.0,93024.0,0.55119324]
[1745505479778,0.13619069,93025.0,93024.0,0.55455229]
[1745505480180,0.00529069,93025.0,93024.0,0.55455229]
[1745505480678,0.00529069,93025.0,93024.0,0.55119324]
[1745505480872,0.00329069,93025.0,93024.0,0.55119324]
[1745505481264,0.07261942,93043.0,93024.0,0.55122854]
[1745505481470,0.09679205,93054.0,93053.0,0.1074312]
[1745505481768,0.39082941,93074.0,93073.0,0.1074081]
[1745505481970,0.37255336,93074.0,93073.0,0.12313664]
[1745505482173,0.3608,93081.0,93076.0,0.1074047]
[1745505482479,0.3608,93081.0,93076.0,0.12314521]
[1745505482690,0.3608,93090.0,93082.0,0.0536983]
[1745505482873,0.3608,93090.0,93076.0,0.00788255]
[1745505483073,0.1074012,93079.0,93077.0,0.01581397]
[1745505483376,0.1074012,93079.0,93078.0,0.01581397]
[1745505483572,0.1074012,93079.0,93078.0,0.01602131]
[1745505484582,0.1074035,93077.0,93076.0,0.00908651]
[1745505484783,0.1074035,93077.0,93076.0,0.01660383]
[1745505485480,0.1074035,93077.0,93076.0,0.001]
[1745505486081,0.107407,93074.0,93073.0,0.11832972]
[1745505486282,0.107407,93074.0,93073.0,0.13386598]
[1745505486780,0.1740058,93075.0,93074.0,0.107407]
[1745505487080,0.1740058,93075.0,93074.0,0.18498063]
[1745505487081,0.0666,93075.0,93074.0,0.18498063]
[1745505487467,0.008,93077.0,93076.0,0.1074047]
[1745505487668,0.1073891,93091.0,93090.0,0.1073881]
[1745505487872,0.1073881,93092.0,93091.0,0.1073866]
[1745505488077,0.3608,93093.0,93091.0,0.1073866]
[1745505488281,0.3608,93093.0,93089.0,0.0625]
[1745505488282,0.4681855,93093.0,93092.0,0.0619]
[1745505488983,0.0624,93095.0,93094.0,0.1073839]
[1745505489474,0.1697827,93095.0,93094.0,0.1073839]
[1745505490780,0.1777827,93095.0,93094.0,0.1073839]
[1745505490975,0.3089827,93095.0,93094.0,0.1073839]
[1745505491176,0.2016,93095.0,93094.0,0.1073839]
[1745505492081,0.1976,93095.0,93094.0,0.1073839]
[1745505492386,0.2026,93095.0,93094.0,0.1073839]
[1745505492875,0.009,93095.0,93094.0,0.48832753]
[1745505493072,0.09525177,93100.0,93099.0,0.1073781]
[1745505493268,0.09525177,93100.0,93099.0,0.12416446]
[1745505493477,0.09525177,93100.0,93099.0,0.12752173]
[1745505493873,0.09525177,93100.0,93099.0,0.19052173]
[1745505494477,0.09525177,93100.0,93099.0,0.00335727]
[1745505494668,0.09825177,93100.0,93099.0,0.1073781]
[1745505494979,0.09825177,93100.0,93089.0,0.14318]
[1745505494980,0.20566377,93100.0,93089.0,0.14318]
[1745505495178,0.1326,93099.0,93098.0,0.1073793]
[1745505495375,0.240012,93099.0,93098.0,0.1073793]
[1745505495676,0.1326,93099.0,93098.0,0.1073793]
[1745505496273,0.1326,93099.0,93096.0,0.1187906]
[1745505496274,0.09825177,93100.0,93099.0,0.1073781]
[1745505497168,0.09725177,93100.0,93097.0,0.1174901]
[1745505497375,0.1328,93099.0,93098.0,0.1073793]
[1745505497769,0.09525177,93100.0,93099.0,0.1073781]
[1745505498084,0.09525177,93100.0,93099.0,0.25137932]
[1745505498679,0.09525177,93100.0,93099.0,0.2358781]
[1745505499176,0.09525177,93100.0,93099.0,0.1285]
[1745505499379,0.09525177,93100.0,93099.0,0.2358781]
[1745505500578,0.20462877,93100.0,93099.0,0.0638]
[1745505501078,0.20262877,93100.0,93099.0,0.1711781]
[1745505501473,0.56342877,93100.0,93099.0,0.0638]
[1745505502577,0.67084077,93100.0,93099.0,0.1711781]
[1745505503375,0.67084077,93100.0,93099.0,0.0638]
[1745505503578,0.1610862,93090.0,93089.0,0.107387]
[1745505503780,0.0536947,93090.0,93089.0,0.107387]
[1745505503978,0.0536915,93095.0,93094.0,0.1073816]
[1745505504179,0.0626,93095.0,93094.0,0.1073839]
[1745505504580,0.0619,93097.0,93096.0,0.1073816]
[1745505505172,0.37255336,93106.0,93099.0,0.1073781]
[1745505505573,0.37255336,93106.0,93099.0,0.12355414]
[1745505506087,0.37255336,93106.0,93099.0,0.25355414]
[1745505506289,0.09525177,93100.0,93099.0,0.25355414]
[1745505506485,0.37255336,93137.0,93116.0,0.1073585]
[1745505506783,0.04735563,93132.0,93131.0,0.1073412]
[1745505506977,0.16309176,93150.0,93146.0,0.1073239]
[1745505507180,0.16309176,93150.0,93146.0,0.12338868]
[1745505507381,0.16309176,93150.0,93145.0,0.1073247]
[1745505507574,0.17306001,93146.0,93132.0,0.07808]
[1745505507781,0.1073281,93143.0,93133.0,0.08228041]
[1745505507982,0.1252,93142.0,93134.0,0.01618041]
[1745505508175,0.0621,93142.0,93139.0,0.0536657]
[1745505508381,0.0621,93142.0,93141.0,0.1073297]
[1745505508600,0.16309176,93150.0,93146.0,0.1073239]
[1745505508781,0.37255336,93176.0,93167.0,0.1072995]
[1745505508782,0.0621,93172.0,93167.0,0.1072995]
[1745505508982,0.1703956,93171.0,93163.0,0.053652]
[1745505509286,0.1703956,93171.0,93164.0,0.08215593]
[1745505509587,0.1073009,93166.0,93157.0,0.4144555]
[1745505509776,0.1073009,93166.0,93158.0,0.14479386]
[1745505509777,0.107309,93159.0,93158.0,0.14479386]
[1745505509978,0.4887,93165.0,93147.0,0.0712774]
[1745505510183,0.3608,93165.0,93157.0,0.0536551]
[1745505510386,0.0536491,93169.0,93163.0,0.0536516]
[1745505510587,0.0658,93168.0,93166.0,0.1073002]
[1745505510791,0.107302,93165.0,93164.0,0.2900541]
[1745505511090,0.107302,93165.0,93164.0,0.1827516]
[1745505511288,0.173102,93165.0,93164.0,0.1827516]
[1745505511487,0.176102,93165.0,93164.0,0.1827516]
[1745505511990,0.003,93165.0,93164.0,0.1827516]
[1745505512490,0.110302,93165.0,93164.0,0.1196516]
[1745505512699,0.110302,93165.0,93164.0,0.066]
[1745505512887,0.1073093,93160.0,93159.0,0.1073086]
[1745505513483,0.1073093,93160.0,93151.0,0.1303]
[1745505513484,0.1073142,93156.0,93155.0,0.1073114]
[1745505513683,0.1073168,93154.0,93153.0,0.107315]
[1745505514091,0.107318,93152.0,93151.0,0.1073175]
[1745505514284,0.3608,93161.0,93160.0,0.1073078]
[1745505515382,0.4681067,93161.0,93160.0,0.1724078]
[1745505516200,0.1073127,93158.0,93149.0,0.0536601]
[1745505516390,0.1073124,93156.0,93155.0,0.0536563]
[1745505517081,0.107317,93153.0,93152.0,0.107317]
[1745505517486,0.1073251,93146.0,93145.0,0.053662]
[1745505517883,0.1683251,93146.0,93145.0,0.1073251]
[1745505518094,0.1073297,93141.0,93140.0,0.00161041]
[1745505518294,0.1073574,93117.0,93105.0,0.57776862]
[1745505518485,0.4681574,93117.0,93114.0,0.06456524]
[1745505518788,0.4681574,93117.0,93112.0,0.06]
[1745505518789,0.5755494,93117.0,93116.0,0.10843242]
[1745505519599,0.2147494,93117.0,93116.0,0.10843242]
[1745505520297,0.2157494,93117.0,93116.0,0.10843242]
[1745505520798,0.2147494,93117.0,93116.0,0.00107392]
[1745505522088,0.2786494,93117.0,93116.0,0.00107392]
[1745505522489,0.1073631,93112.0,93111.0,0.00536991]
[1745505522999,0.21476311,93112.0,93111.0,0.00536991]
[1745505523499,0.27866311,93112.0,93111.0,0.00536991]
[1745505524498,0.28066311,93112.0,93111.0,0.00536991]
[1745505524795,0.0536845,93107.0,93090.0,0.3608]
[1745505524997,0.107385,93093.0,93086.0,0.00900652]
[1745505525300,0.468185,93093.0,93087.0,0.07493017]
[1745505525500,0.575605,93093.0,93087.0,0.18232197]
[1745505525696,0.639605,93093.0,93087.0,0.1269]
[1745505526398,0.639605,93093.0,93092.0,0.00461116]
[1745505526694,0.699305,93093.0,93092.0,0.00761116]
[1745505528699,0.699305,93093.0,93092.0,0.00461116]
[1745505529093,0.699305,93093.0,93092.0,0.11499736]
[1745505529094,0.468185,93093.0,93092.0,0.11499736]
[1745505529403,0.468185,93093.0,93092.0,0.00761116]
[1745505529899,0.593085,93093.0,93092.0,0.00761116]
[1745505530101,0.700505,93093.0,93092.0,0.00761116]
[1745505531695,1.061305,93093.0,93092.0,0.00761116]
[1745505534398,0.999005,93093.0,93092.0,0.00761116]
[1745505535304,0.999005,93093.0,93092.0,0.006]
[1745505535807,1.077045,93093.0,93092.0,0.006]
[1745505536596,0.653645,93093.0,93092.0,0.006]
[1745505538093,0.713245,93093.0,93092.0,0.006]
[1745505540105,0.605825,93093.0,93092.0,0.006]
[1745505543112,0.0536945,93090.0,93086.0,0.00107427]
[1745505543410,0.107392,93087.0,93086.0,0.00107427]
[1745505543713,0.21482,93087.0,93086.0,0.00107427]
[1745505543907,0.1074012,93079.0,93078.0,0.01876234]
[1745505544109,0.0537086,93066.0,93063.0,0.00537268]
[1745505544302,0.1074173,93065.0,93064.0,0.0712774]
[1745505544508,0.1716173,93065.0,93064.0,0.18923986]
[1745505545014,0.1074173,93065.0,93064.0,0.18923986]
[1745505546213,0.1074173,93065.0,93064.0,0.20623986]
[1745505546405,0.1074173,93065.0,93064.0,0.27043986]
[1745505546713,0.1074173,93065.0,93064.0,0.16302136]
[1745505547712,0.1074173,93065.0,93064.0,0.1524774]
[1745505548008,0.0537239,93040.0,93038.0,0.3608]
[1745505548215,0.0537239,93040.0,93039.0,0.0642]
[1745505548408,0.4682324,93052.0,93051.0,0.1074335]
[1745505548609,0.2895226,93052.0,93051.0,0.1074335]
[1745505548814,0.396955,93052.0,93051.0,0.11564051]
[1745505549208,0.2895226,93052.0,93051.0,0.11564051]
[1745505549407,0.1854654,93059.0,93058.0,0.1074254]
[1745505549611,0.3608,93070.0,93049.0,0.39174728]
[1745505549810,0.1854589,93064.0,93063.0,0.1074197]
[1745505550709,0.07804,93064.0,93051.0,0.01]
[1745505551006,0.0537124,93059.0,93058.0,0.107423]
[1745505551208,0.1074229,93061.0,93060.0,0.107422]
[1745505551418,0.1074229,93061.0,93060.0,0.11546621]
[1745505551714,0.3608,93062.0,93061.0,0.107422]
[1745505552719,0.3608,93062.0,93056.0,0.0537136]
[1745505552720,0.053711,93061.0,93056.0,0.0537136]
[1745505552915,0.1074266,93057.0,93056.0,0.0537136]
[1745505553119,0.3608,93062.0,93060.0,0.1074231]
[1745505553306,0.107422,93061.0,93060.0,0.1074231]
[1745505553510,0.107422,93061.0,93060.0,0.11561868]
[1745505553812,0.107422,93061.0,93060.0,0.00819558]
[1745505554019,0.1074266,93057.0,93056.0,0.1074275]
[1745505554818,0.1074266,93057.0,93056.0,0.002]
[1745505555121,0.1074266,93057.0,93056.0,0.1094277]
[1745505555314,0.1074266,93057.0,93056.0,0.002]
[1745505555619,0.1074266,93057.0,93056.0,0.004]
[1745505555821,0.1074266,93057.0,93056.0,0.005]
[1745505557811,0.1074266,93057.0,93056.0,0.1124277]
[1745505558121,0.1074266,93057.0,93056.0,0.005]
[1745505559016,0.1074266,93057.0,93056.0,0.1124277]
[1745505560013,0.1074266,93057.0,93056.0,0.12029636]
[1745505560423,0.4682266,93057.0,93056.0,0.12029636]
[1745505561529,0.4682266,93057.0,93056.0,0.01286866]
[1745505561717,0.4682266,93057.0,93056.0,0.12029636]
[1745505562113,0.5338266,93057.0,93056.0,0.005]
[1745505563022,0.1074474,93039.0,93038.0,0.53275013]
[1745505563227,0.1074474,93039.0,93038.0,0.17195013]
[1745505563418,0.2230686,93041.0,93040.0,0.1074462]
[1745505564222,0.1156231,93041.0,93040.0,0.1074462]